bitfinex-derivatives/quotes_ETHF0:USTF0_20250803
["timestamp","ask_amount","ask_price","bid_price","bid_amount"]
[1754215645455,1.28047,3469.7,3469.6,3.2078]
[1754215645656,3.29954491,3469.7,3469.6,3.2078]
[1754215645856,3.29954491,3469.7,3469.6,3.5048]
[1754215646056,3.29954491,3469.7,3469.6,4.0231]
[1754215646458,3.29954491,3469.7,3469.6,4.7406]
[1754215646952,2.19387491,3469.7,3469.6,3.2078]
[1754215647158,2.72307491,3469.7,3469.6,3.2078]
[1754215648865,0.704,3469.2,3469.1,0.5123]
[1754215649161,2.72307491,3469.2,3469.1,0.8153]
[1754215649362,3.29963491,3469.2,3469.0,3.2078]
[1754215649565,2.72307491,3469.1,3469.0,3.2078]
[1754215649864,2.72307491,3469.1,3469.0,3.5048]
[1754215650563,2.72307491,3469.1,3469.0,3.2078]
[1754215651066,2.72307491,3469.1,3469.0,3.7201]
[1754215651257,2.72307491,3469.1,3469.0,3.2078]
[1754215651560,2.37894,3468.8,3468.7,1.5328]
[1754215651755,3.29971491,3468.8,3468.7,1.5328]
[1754215652161,2.37894,3468.8,3468.7,1.5328]
[1754215654963,0.88514,3468.8,3468.5,3.2078]
[1754215655171,1.7958,3468.6,3468.5,4.2573]
[1754215655469,1.7958,3468.6,3468.5,4.053]
[1754215656266,1.7958,3468.6,3468.5,4.7896]
[1754215658372,1.7958,3468.6,3468.5,4.053]
[1754215658965,1.7958,3468.6,3468.5,4.2573]
[1754215659465,1.7958,3468.6,3468.5,4.7896]
[1754215660969,1.7958,3468.6,3468.5,4.2696]
[1754215661171,0.2035,3468.1,3468.0,3.4244]
[1754215661371,1.7958,3468.1,3468.0,4.463]
[1754215661876,1.7958,3468.1,3468.0,4.7896]
[1754215662174,1.4896,3468.1,3468.0,4.7896]
[1754215663877,1.7562,3468.1,3468.0,4.7896]
[1754215666171,1.5391,3468.1,3468.0,4.7896]
[1754215666779,1.7562,3468.1,3468.0,4.7896]
[1754215673284,0.2666,3468.1,3468.0,4.7896]
[1754215673675,1.4896,3469.0,3468.9,0.4319]
[1754215673882,2.71244724,3469.0,3468.9,1.0586]
[1754215675284,2.18914724,3469.0,3468.9,1.0586]
[1754215676082,0.7191,3469.1,3469.0,1.06739]
[1754215676381,1.4896,3469.1,3469.0,1.06739]
[1754215676684,2.40723542,3469.1,3469.0,1.63519]
[1754215677582,2.71343542,3469.1,3469.0,1.0586]
[1754215677792,2.71343542,3469.1,3469.0,0.5787]
[1754215678180,2.71343542,3469.1,3469.0,0.7831]
[1754215678381,2.71343542,3469.1,3469.0,0.9997]
[1754215678580,2.71343542,3469.1,3469.0,1.0586]
[1754215678890,2.40723542,3469.1,3469.0,1.0586]
[1754215679477,2.19013542,3469.1,3469.0,1.0586]
[1754215680782,0.91763542,3469.1,3469.0,1.0586]
[1754215680982,1.4896,3469.4,3469.3,0.4908]
[1754215681186,2.71422169,3469.4,3469.3,1.0586]
[1754215682381,2.40802169,3469.4,3469.3,1.0577]
[1754215682581,1.75212169,3469.4,3469.3,1.0584]
[1754215682888,2.43182169,3469.4,3469.3,1.0584]
[1754215683082,2.75382169,3469.4,3469.3,1.0584]
[1754215683682,1.64902169,3469.4,3469.3,0.5193]
[1754215684289,2.75382169,3469.4,3469.3,0.5193]
[1754215685194,1.8354,3469.4,3469.3,0.5193]
[1754215685783,2.75321355,3469.4,3469.3,0.5193]
[1754215686687,1.8354,3469.3,3469.2,0.88005]
[1754215686887,1.8354,3469.3,3469.2,1.09585]
[1754215688290,1.8354,3469.3,3469.2,1.13235]
[1754215688600,1.8354,3469.3,3469.2,1.33655]
[1754215690194,1.8354,3469.3,3469.2,0.5558]
[1754215693404,1.8354,3469.3,3469.2,0.5193]
[1754215694899,1.8354,3469.3,3469.2,0.5558]
[1754215695294,1.8354,3469.3,3469.2,0.9773]
[1754215696396,1.8354,3469.3,3469.2,1.0358]
[1754215699301,1.5134,3469.3,3469.2,1.0358]
[1754215700197,3.4173,3469.8,3469.7,0.2158]
[1754215700406,5.17523146,3469.8,3469.7,0.5558]
[1754215700797,5.95803146,3469.8,3469.7,0.5558]
[1754215701609,2.75023146,3469.8,3469.7,0.5558]
[1754215702101,2.75023146,3469.8,3469.7,1.0358]
[1754215702301,1.22143146,3469.8,3469.7,1.0358]
[1754215702498,0.3066,3469.8,3469.7,1.0358]
[1754215702707,1.8354,3469.8,3469.7,1.0358]
[1754215704306,1.3039,3469.8,3469.7,1.0358]
[1754215704504,1.5134,3469.8,3469.7,1.0358]
[1754215704803,1.8354,3469.8,3469.7,1.0358]
[1754215705192,2.75085563,3469.8,3469.7,1.0358]
[1754215705398,1.8354,3469.8,3469.7,1.0358]
[1754215706610,3.2078,3470.2,3469.9,0.57643]
[1754215706908,0.7306,3470.0,3469.9,0.5558]
[1754215707100,1.64595879,3470.0,3469.9,0.5558]
[1754215707301,2.75075879,3470.0,3469.9,0.5558]
[1754215708203,2.75075879,3470.0,3469.9,0.9773]
[1754215708402,1.5134,3470.3,3470.2,1.0358]
[1754215708609,0.3126,3470.5,3470.2,1.61218]
[1754215708907,0.3126,3470.6,3470.3,1.61217]
[1754215709095,0.7828,3470.6,3470.5,0.85214]
[1754215709300,0.7828,3470.6,3470.5,1.61214]
[1754215709501,21.1354,3470.9,3470.8,1.61209]
[1754215710907,1.5134,3471.4,3471.3,1.40781]
[1754215711102,1.5134,3471.4,3471.3,1.61201]
[1754215711504,1.2008,3471.7,3471.6,1.06774]
[1754215711800,1.8354,3471.7,3471.6,1.61194]
[1754215711999,1.8354,3471.7,3471.6,1.0358]
[1754215712202,1.8354,3471.7,3471.6,0.5193]
[1754215712404,1.8354,3471.7,3471.6,0.7231]
[1754215712605,1.8354,3471.7,3471.6,0.7591]
[1754215713007,1.8354,3471.7,3471.6,0.9764]
[1754215713311,1.5104,3471.7,3471.6,1.034]
[1754215713706,4.2078,3472.0,3471.7,0.57614]
[1754215714011,5.2399,3472.0,3471.9,0.9645]
[1754215714515,6.0303,3472.0,3471.9,0.5074]
[1754215714803,4.2078,3472.0,3471.7,0.5074]
[1754215715011,1.8225,3471.8,3471.7,0.5074]
[1754215715206,4.2078,3472.0,3471.9,0.2028]
[1754215715511,1.0,3472.0,3471.9,1.0221]
[1754215715703,2.3015,3472.0,3471.9,1.0221]
[1754215715903,1.7904,3472.0,3471.9,1.0221]
[1754215716410,1.506,3471.6,3471.5,0.5074]
[1754215716601,1.506,3471.2,3471.1,3.2078]
[1754215716807,0.7139,3470.8,3470.7,4.0261]
[1754215717110,0.8276,3470.8,3470.7,4.2299]
[1754215717411,0.3165,3470.9,3470.8,1.0221]
[1754215717602,0.4739,3471.0,3470.9,1.05397]
[1754215717803,0.7904,3471.0,3470.9,1.59837]
[1754215718008,0.7904,3471.0,3470.9,1.0221]
[1754215718313,1.8225,3471.0,3470.9,1.0221]
[1754215718608,1.8225,3471.0,3470.9,0.5074]
[1754215718798,1.8225,3471.0,3470.9,0.2028]
[1754215719004,0.7139,3471.0,3470.7,3.2438]
[1754215719205,1.8225,3470.9,3470.8,0.2028]
[1754215719508,1.8225,3470.9,3470.8,0.5074]
[1754215720808,1.0321,3470.9,3470.7,3.2078]
[1754215721011,1.8225,3470.8,3470.7,3.7152]
[1754215721709,1.8225,3470.4,3470.3,3.4106]
[1754215721904,1.8225,3470.4,3470.3,3.2078]
[1754215722406,0.57637,3470.3,3469.9,3.2078]
[1754215722711,1.8225,3470.0,3469.9,3.2078]
[1754215723707,1.8225,3469.7,3469.6,0.5074]
[1754215724107,21.5995,3469.7,3469.6,0.2028]
[1754215724809,2.39899,3469.6,3469.5,3.2078]
[1754215725206,19.775,3470.1,3470.0,0.2028]
[1754215725412,19.775,3470.1,3470.0,1.0221]
[1754215725712,20.3908,3470.1,3470.0,1.0221]
[1754215725913,21.2793,3470.1,3470.0,1.0221]
[1754215726309,21.5975,3470.1,3470.0,0.5074]
[1754215726708,21.5975,3470.1,3469.8,0.036]
[1754215726709,0.57642,3470.0,3469.8,0.036]
[1754215727013,1.8225,3469.9,3469.8,0.5434]
[1754215728814,1.8225,3469.9,3469.8,0.5074]
[1754215729018,1.8225,3469.9,3469.8,0.2028]
[1754215729413,1.8225,3469.9,3469.8,0.5074]
[1754215729714,1.8225,3469.9,3469.8,1.0221]
[1754215731415,3.2078,3470.4,3469.8,0.3046]
[1754215731619,24.8123,3470.4,3470.3,1.0221]
[1754215732914,24.8123,3470.4,3470.3,0.7607]
[1754215733316,5.0303,3470.4,3470.3,0.7607]
[1754215733515,24.8113,3470.4,3470.3,0.7607]
[1754215734315,24.8113,3470.4,3470.3,0.9645]
[1754215734515,4.7121,3470.4,3470.3,1.0221]
[1754215734706,21.2843,3470.4,3470.3,1.0221]
[1754215735420,1.5043,3470.4,3470.3,1.0221]
[1754215735720,1.8225,3470.7,3470.6,1.0221]
[1754215736023,21.5995,3470.7,3470.6,0.7607]
[1754215736224,21.5995,3470.7,3470.6,0.5074]
[1754215737317,21.6005,3470.7,3470.6,0.9645]
[1754215737506,21.6005,3470.7,3470.6,1.0221]
[1754215738412,21.5975,3470.7,3470.6,1.0221]
[1754215738918,1.8225,3470.7,3470.6,1.0221]
[1754215739211,21.5925,3470.7,3470.6,1.0221]
[1754215739419,21.5915,3470.7,3470.6,1.0221]
[1754215739819,21.5915,3470.7,3470.6,0.7607]
[1754215740219,21.5915,3470.7,3470.6,0.5074]
[1754215740622,1.8225,3470.7,3470.6,0.5074]
[1754215740819,21.5875,3470.7,3470.6,0.5074]
[1754215741723,3.2078,3470.8,3470.4,0.2398]
[1754215741724,1.8167,3470.5,3470.4,0.5174]
[1754215742017,21.5797,3470.5,3470.4,0.5174]
[1754215743024,1.8167,3470.5,3470.4,0.5174]
[1754215743224,21.5787,3470.5,3470.4,0.5174]
[1754215744218,1.8167,3470.5,3470.4,0.5174]
[1754215744420,21.5727,3470.5,3470.4,1.0204]
[1754215744918,1.4961,3470.5,3470.4,1.0204]
[1754215745125,21.2511,3470.5,3470.4,1.0204]
[1754215745324,21.5717,3470.5,3470.4,1.0204]
[1754215746326,21.5717,3470.5,3470.4,1.59676]
[1754215748128,1.8167,3470.5,3470.4,1.0204]
[1754215748324,21.5657,3470.5,3470.4,1.0204]
[1754215749132,22.48184151,3470.5,3470.4,1.0204]
[1754215749529,2.73284151,3470.5,3470.4,1.0204]
[1754215749828,22.47984151,3470.5,3470.4,1.0204]
[1754215750418,20.66314151,3470.5,3470.4,1.0204]
[1754215750624,21.44204151,3470.5,3470.4,1.0204]
[1754215750831,22.47984151,3470.5,3470.4,1.0204]
[1754215751426,1.55725559,3471.2,3470.4,1.0204]
[1754215751427,1.03817039,3471.4,3470.9,0.2113]
[1754215751628,22.61987039,3471.4,3471.3,0.2113]
[1754215751828,22.83588572,3471.4,3471.3,0.2113]
[1754215752028,3.07088572,3471.4,3471.3,0.2113]
[1754215752230,21.5817,3471.4,3471.3,0.2113]
[1754215752527,1.8167,3471.4,3471.3,0.2113]
[1754215752727,20.4995,3471.4,3471.0,4.09015]
[1754215752935,1.8167,3471.1,3471.0,3.78405]
[1754215753121,21.5797,3471.1,3471.0,3.78405]
[1754215753324,21.5797,3471.1,3471.0,3.99535]
[1754215755136,21.5797,3471.1,3471.0,3.2078]
[1754215756637,21.5797,3471.1,3471.0,3.4191]
[1754215756836,21.5797,3471.1,3471.0,3.6227]
[1754215757135,21.5797,3471.1,3471.0,3.8293]
[1754215757536,21.5797,3471.1,3471.0,4.1354]
[1754215757838,21.5757,3471.1,3471.0,4.1354]
[1754215758038,1.8167,3471.1,3471.0,4.1354]
[1754215758238,21.5697,3471.1,3471.0,4.1354]
[1754215758738,21.5697,3471.1,3471.0,3.8293]
[1754215759031,3.2078,3471.6,3471.0,3.2078]
[1754215759339,0.7365,3471.2,3471.1,0.99414]
[1754215759638,21.5667,3471.2,3471.1,0.99414]
[1754215759939,21.5667,3471.2,3471.1,1.50384]
[1754215760438,1.8167,3471.2,3471.1,1.50384]
[1754215760637,24.085,3471.6,3471.5,1.50377]
[1754215760841,4.288,3471.6,3471.5,1.50377]
[1754215761644,3.8254,3471.6,3471.5,1.50377]
[1754215762240,19.794,3471.6,3471.5,1.50377]
[1754215762942,2.092,3471.7,3471.5,1.50377]
[1754215763137,21.882,3471.7,3471.6,0.9276]
[1754215763647,2.092,3471.7,3471.6,0.9276]
[1754215764344,2.3541,3472.0,3471.9,0.4179]
[1754215764546,2.8167,3472.0,3471.9,0.9276]
[1754215764745,1.297,3472.0,3471.9,0.9276]
[1754215765043,1.6176,3472.0,3471.9,0.9276]
[1754215765242,1.0,3472.0,3471.9,0.9276]
[1754215769349,1.0,3472.0,3471.9,4.1354]
[1754215769641,1.5096,3472.0,3471.9,4.1354]
[1754215769847,2.8167,3472.0,3471.9,4.1354]
[1754215771248,1.0,3472.0,3471.9,4.1354]
[1754215771451,2.8167,3472.0,3471.9,4.1354]
[1754215772149,2.8167,3472.0,3471.9,3.6257]
[1754215772352,2.8167,3472.0,3471.9,3.8295]
[1754215772850,2.8167,3472.0,3471.9,3.4191]
[1754215774052,2.8167,3472.0,3471.9,3.2078]
[1754215780354,2.8167,3472.0,3471.9,2.7162]
[1754215782148,3.72752434,3472.0,3471.9,2.7162]
[1754215785758,5.81952434,3472.0,3471.9,2.7162]
[1754215790654,5.81952434,3472.0,3471.9,2.9158]
[1754215790862,25.55452434,3472.0,3471.9,3.4054]
[1754215791664,23.46252434,3472.0,3471.9,3.4054]
[1754215791863,3.72752434,3472.0,3471.9,3.4054]
[1754215792166,3.72752434,3472.0,3471.9,3.9087]
[1754215792362,23.45952434,3472.0,3471.9,4.1125]
[1754215794460,23.45952434,3472.0,3471.9,1.3963]
[1754215796464,23.45352434,3472.0,3471.9,1.3963]
[1754215796854,0.57611,3471.9,3471.7,0.2038]
[1754215797059,2.71852434,3471.8,3471.7,1.1969]
[1754215797558,0.7459,3471.4,3471.3,3.8106]
[1754215797762,1.8077,3471.4,3471.3,4.4186]
[1754215798165,1.8077,3471.4,3471.3,4.9082]
[1754215799266,19.719,3471.5,3471.4,1.7004]
[1754215799759,19.716,3471.6,3471.5,1.501]
[1754215799963,19.716,3471.6,3471.5,1.7004]
[1754215800460,20.62861468,3471.6,3471.5,1.7004]
[1754215802166,20.63361468,3471.6,3471.5,1.7004]
[1754215802666,2.3778,3472.0,3471.9,0.7209]
[1754215802866,23.49844345,3472.0,3471.9,1.696]
[1754215805068,23.49844345,3472.0,3471.9,1.3813]
[1754215805260,23.49844345,3472.0,3471.9,1.1766]
[1754215805961,23.49844345,3472.0,3471.9,0.9674]
[1754215806867,3.77944345,3472.0,3471.9,0.9674]
[1754215807160,23.48944345,3472.0,3471.9,0.9674]
[1754215807863,1.8665,3471.6,3471.4,0.2047]
[1754215808167,22.48944345,3471.5,3471.4,0.9674]
[1754215808469,22.48944345,3471.5,3471.4,1.3813]
[1754215808661,22.48944345,3471.5,3471.4,1.696]
[1754215808962,22.48944345,3471.5,3471.4,0.2161]
[1754215809459,22.48944345,3471.5,3471.4,0.9674]
[1754215809665,22.48944345,3471.5,3471.4,1.3813]
[1754215809965,22.48944345,3471.5,3471.4,1.1766]
[1754215810164,1.8665,3471.4,3471.3,4.3799]
[1754215810469,2.77944345,3471.4,3471.3,4.5891]
[1754215810662,2.77944345,3471.4,3471.3,4.9038]
[1754215812174,1.8665,3471.1,3471.0,1.696]
[1754215812364,22.48226699,3471.1,3471.0,0.9674]
[1754215812762,22.48226699,3471.1,3471.0,1.3813]
[1754215813470,22.48226699,3471.1,3471.0,1.696]
[1754215814060,22.48226699,3471.1,3470.9,3.2078]
[1754215814268,1.65786699,3471.0,3470.9,3.2078]
[1754215814467,2.78026699,3471.0,3470.9,3.2078]
[1754215814666,2.78026699,3471.0,3470.9,4.0831]
[1754215814871,2.78026699,3471.0,3470.9,4.3787]
[1754215816174,2.78026699,3471.0,3470.9,4.9026]
[1754215816570,22.48526699,3471.0,3470.9,4.9026]
[1754215817665,0.91376699,3471.0,3470.9,4.9026]
[1754215817874,0.3108,3471.1,3471.0,1.6948]
[1754215818070,20.3367,3471.1,3471.0,1.6948]
[1754215818372,21.24971521,3471.1,3471.0,1.6948]
[1754215818578,21.67521521,3471.1,3471.0,1.6948]
[1754215818773,22.48251521,3471.1,3471.0,1.6948]
[1754215822774,22.48251521,3471.1,3471.0,1.3801]
[1754215823073,22.47651521,3471.1,3471.0,1.3801]
[1754215823377,22.47651521,3471.1,3471.0,1.1766]
[1754215823575,22.47651521,3471.1,3471.0,0.9674]
[1754215824174,22.47651521,3471.1,3470.9,3.2078]
[1754215824375,2.44276,3471.0,3470.9,3.2078]
[1754215824576,1.8665,3471.0,3470.9,3.2078]
[1754215824776,1.8665,3471.0,3470.9,3.8796]
[1754215824974,1.8665,3471.0,3470.9,4.3787]
[1754215825175,1.8665,3471.0,3470.9,4.5879]
[1754215826174,1.8665,3471.0,3470.9,4.9026]
[1754215826372,21.5595,3471.0,3470.9,4.9026]
[1754215826569,0.57622,3471.3,3470.9,4.29577]
[1754215826775,0.6337,3471.0,3470.9,4.81967]
[1754215826976,20.3247,3471.0,3470.9,5.02317]
[1754215827170,20.3247,3471.0,3470.9,5.47887]
[1754215827374,21.0239,3471.0,3470.9,5.47887]
[1754215827880,21.0259,3471.0,3470.9,5.47887]
[1754215829182,21.5595,3471.0,3470.9,5.47887]
[1754215829780,21.5595,3471.0,3470.9,4.9026]
[1754215831191,22.47211526,3471.0,3470.9,1.1766]
[1754215831494,0.7441,3470.8,3470.7,0.7152]
[1754215831686,21.5545,3470.8,3470.7,1.1709]
[1754215831987,21.5545,3470.8,3470.7,0.9832]
[1754215832186,21.5545,3470.8,3470.7,1.1872]
[1754215832385,21.5545,3470.8,3470.7,1.3879]
[1754215835195,21.5545,3470.8,3470.7,1.7111]
[1754215835496,21.5465,3470.8,3470.7,1.7111]
[1754215836591,22.12279,3470.8,3470.7,1.1839]
[1754215836795,21.5465,3470.8,3470.7,1.1839]
[1754215837099,21.5465,3470.8,3470.7,1.3879]
[1754215837799,21.5465,3470.8,3470.7,1.7111]
[1754215838999,21.5465,3470.8,3470.7,1.3879]
[1754215839695,22.46022462,3470.8,3470.7,1.3879]
[1754215840601,22.46022462,3470.8,3470.7,0.6822]
[1754215841197,22.46022462,3470.8,3470.7,1.96421]
[1754215841404,22.46022462,3470.8,3470.7,1.7111]
[1754215843003,23.03651462,3470.8,3470.7,1.7111]
[1754215843298,2.78022462,3470.8,3470.7,1.7111]
[1754215843506,22.44622462,3470.8,3470.7,1.7111]
[1754215843803,22.44622462,3470.8,3470.7,1.3879]
[1754215844502,2.78022462,3470.8,3470.7,1.3879]
[1754215844698,22.44322462,3470.8,3470.7,1.3879]
[1754215846294,22.44322462,3470.8,3470.7,1.7111]
[1754215846699,20.57672462,3470.8,3470.7,1.1839]
[1754215846899,22.37272462,3470.8,3470.7,1.7111]
[1754215848602,2.70972462,3470.8,3470.7,1.7111]
[1754215848906,20.57072462,3470.8,3470.7,1.7111]
[1754215850106,19.657,3470.8,3470.7,1.7111]
[1754215850308,0.6298,3471.0,3470.9,0.7183]
[1754215850309,0.7027,3471.0,3470.9,0.7183]
[1754215850507,0.9143929,3471.0,3470.9,4.9194]
[1754215850706,20.5713929,3471.0,3470.9,5.49567]
[1754215851098,20.8950929,3471.0,3470.9,5.49567]
[1754215851304,21.2011929,3471.0,3470.9,5.49567]
[1754215853107,21.6646929,3471.0,3470.9,5.49567]
[1754215853508,2.0076929,3471.0,3470.9,5.49567]
[1754215853809,20.7503,3471.0,3470.9,5.49567]
[1754215854407,0.7251,3471.9,3471.8,0.9095]
[1754215854603,2.40382243,3471.9,3471.8,0.4173]
[1754215854804,22.07082243,3471.9,3471.8,0.5069]
[1754215855005,22.07082243,3471.9,3471.8,1.0212]
[1754215855204,22.07082243,3471.9,3471.8,1.5304]
[1754215855404,21.1569,3471.9,3471.8,1.5304]
[1754215856610,1.796,3471.9,3471.8,1.5304]
[1754215856798,21.46,3471.9,3471.8,1.5304]
[1754215859613,20.6904,3471.9,3471.8,1.2072]
[1754215859812,21.46,3471.9,3471.8,1.5304]
[1754215860710,0.7027,3471.7,3471.3,0.3062]
[1754215860915,0.57612,3471.8,3471.3,0.8824]
[1754215861116,0.7027,3471.4,3471.3,1.7834]
[1754215861313,1.796,3471.4,3471.3,2.1066]
[1754215862018,1.796,3471.4,3471.3,1.5304]
[1754215862612,1.796,3471.4,3471.3,0.9097]
[1754215863308,1.796,3471.4,3471.3,0.4173]
[1754215864518,1.796,3471.4,3471.3,0.7314]
[1754215864716,1.796,3471.4,3471.3,0.9176]
[1754215864912,1.796,3471.4,3471.3,1.2155]
[1754215865111,1.796,3471.4,3471.3,1.5273]
[1754215865417,1.5971,3471.4,3471.3,2.1035]
[1754215865610,1.7961,3471.4,3471.3,2.1035]
[1754215865913,1.7961,3471.4,3471.3,1.5273]
[1754215874426,1.7961,3471.9,3471.8,1.50102]
[1754215878527,1.7961,3471.9,3471.8,2.11072]
[1754215878826,1.7961,3471.9,3471.8,0.57612]
[1754215879027,1.7961,3471.9,3471.8,1.50102]
[1754215882328,1.7961,3471.9,3471.8,0.79422]
[1754215883029,1.7961,3471.9,3471.8,1.29452]
[1754215883229,1.22136257,3471.9,3471.8,1.79892]
[1754215883429,2.70696257,3471.9,3471.8,2.11072]
[1754215883733,1.7961,3471.9,3471.8,2.11072]
[1754215884029,1.2853,3471.9,3471.8,2.11072]
[1754215884523,1.5971,3471.9,3471.8,2.11072]
[1754215885429,1.7961,3471.9,3471.8,2.11072]
[1754215885928,1.0,3472.0,3471.9,1.534]
[1754215886229,1.3105,3472.0,3471.9,1.534]
[1754215886736,1.0,3472.0,3471.9,1.534]
[1754215891333,1.3105,3472.0,3471.9,1.534]
[1754215891941,1.0,3472.0,3471.9,1.534]
[1754215893039,1.323,3472.0,3471.9,1.534]
[1754215893441,2.129,3472.0,3471.9,1.534]
[1754215893643,1.0,3472.0,3471.9,1.534]
[1754215895151,1.0,3472.0,3471.9,0.4144]
[1754215895354,1.0,3472.0,3471.9,1.5302]
[1754215896652,1.323,3472.0,3471.9,1.5302]
[1754215897353,1.8076,3472.0,3471.9,1.5302]
[1754215898551,1.0,3472.0,3471.9,1.5302]
[1754215898747,0.40229,3472.0,3471.9,1.5302]
[1754215899055,1e-05,3472.0,3471.9,1.5302]
[1754215899753,0.32301,3472.0,3471.9,1.5302]
[1754215900256,1.5328,3472.2,3472.1,1.5302]
[1754215900455,1.5328,3472.2,3472.1,4.738]
[1754215902256,1.8558,3472.2,3472.1,4.738]
[1754215902554,1.8558,3472.2,3472.1,1.5302]
[1754215902750,1.8558,3472.2,3472.1,4.738]
[1754215905059,0.7268,3472.8,3472.7,0.57596]
[1754215905259,1.8558,3472.8,3472.7,0.57596]
[1754215909758,1.8558,3472.8,3472.7,2.10616]
[1754215912159,1.8558,3472.8,3472.7,1.31566]
[1754215912356,0.7268,3472.8,3472.7,2.10616]
[1754215912663,1.8558,3472.8,3472.7,2.10616]
[1754215914064,0.8406,3473.4,3473.3,0.90117]
[1754215914261,2.31779705,3473.4,3473.3,1.11597]
[1754215914763,2.31779705,3473.4,3473.3,0.90117]
[1754215915360,2.31779705,3473.4,3473.3,2.10607]
[1754215916356,1.4067,3473.4,3473.3,2.10607]
[1754215916556,1.3252,3473.4,3473.3,2.10607]
[1754215917262,1.4067,3473.4,3473.3,2.10607]
[1754215917660,0.5192,3473.8,3473.7,0.5758]
[1754215917861,1.4576,3473.7,3473.6,0.90112]
[1754215918058,2.36863019,3473.7,3473.6,0.90112]
[1754215918256,1.1362,3473.6,3473.5,0.90114]
[1754215918467,1.4576,3473.6,3473.5,0.90114]
[1754215918667,1.4067,3473.6,3473.5,1.11594]
[1754215919455,1.4067,3473.6,3473.5,0.5401]
[1754215919661,1.4576,3473.6,3473.4,3.2078]
[1754215919857,1.4576,3473.5,3473.4,3.2078]
[1754215920761,1.4576,3473.5,3473.4,3.5331]
[1754215923272,1.4576,3473.5,3473.4,3.7479]
[1754215923466,1.4576,3473.5,3473.4,4.4391]
[1754215923467,1.4067,3473.5,3473.4,4.4391]
[1754215923666,1.4067,3473.5,3473.4,4.7367]
[1754215925371,1.4067,3473.5,3473.4,3.5331]
[1754215925572,1.459,3473.5,3473.4,3.5331]
[1754215926071,1.4067,3473.5,3473.4,3.74]
[1754215929078,1.4067,3473.5,3473.4,4.0441]
[1754215930077,1.4067,3473.5,3473.4,0.8363]
[1754215931072,1.459,3473.5,3473.4,0.5322]
[1754215931367,1.392,3473.1,3473.0,0.5322]
[1754215931569,1.4443,3473.1,3473.0,0.5322]
[1754215931970,1.18041,3473.1,3473.0,0.3253]
[1754215932575,1.4443,3473.1,3473.0,0.3253]
[1754215932777,1.392,3473.1,3473.0,0.5322]
[1754215932977,1.392,3473.1,3473.0,1.2234]
[1754215933375,1.392,3473.1,3473.0,1.0374]
[1754215933581,1.392,3473.1,3473.0,0.5322]
[1754215933782,1.392,3473.1,3473.0,1.0223]
[1754215934375,1.392,3473.1,3473.0,0.3253]
[1754215934777,1.392,3473.1,3473.0,0.5322]
[1754215935080,1.4443,3473.1,3473.0,0.5322]
[1754215935583,1.4443,3473.1,3472.9,3.2078]
[1754215935584,1.18042,3473.1,3472.9,3.5331]
[1754215935783,1.4443,3473.0,3472.9,3.5331]
[1754215935984,1.392,3473.0,3472.9,3.74]
[1754215936281,1.4443,3473.0,3472.9,3.74]
[1754215937681,1.4443,3473.0,3472.9,3.5331]
[1754215938784,2.35649454,3473.0,3472.9,3.5331]
[1754215940683,2.35649454,3473.0,3472.5,3.2078]
[1754215940983,1.4443,3472.6,3472.5,3.5331]
[1754215941178,1.4443,3472.6,3472.5,3.74]
[1754215941580,1.4443,3472.6,3472.5,0.3253]
[1754215941785,2.35651052,3472.6,3472.5,0.3253]
[1754215941981,2.30421052,3472.6,3472.5,0.5322]
[1754215942186,1.392,3472.6,3472.5,0.5322]
[1754215942387,1.392,3472.6,3472.5,1.0223]
[1754215943285,2.30382427,3472.6,3472.5,1.2234]
[1754215945890,21.94382427,3472.6,3472.5,1.2234]
[1754215946190,1.392,3472.6,3472.5,1.2234]
[1754215946489,21.032,3472.6,3472.5,1.2234]
[1754215946886,1.3083,3472.6,3472.5,1.2234]
[1754215947191,20.9483,3472.6,3472.5,1.521]
[1754215948991,1.3083,3472.6,3472.5,1.521]
[1754215949180,20.9483,3472.6,3472.5,1.521]
[1754215950591,21.032,3472.6,3472.5,1.521]
[1754215950889,21.032,3472.6,3472.5,1.2234]
[1754215952290,21.032,3472.6,3472.5,0.5322]
[1754215952688,21.0837,3472.6,3472.5,0.5322]
[1754215954595,21.0837,3472.6,3472.5,0.3253]
[1754215955297,1.3792,3472.0,3471.9,4.2392]
[1754215955492,21.0192,3472.0,3471.9,4.2392]
[1754215955693,21.0192,3472.0,3471.9,4.7295]
[1754215955888,21.0192,3472.0,3471.9,4.4179]
[1754215956193,21.0192,3472.0,3471.9,3.9366]
[1754215956494,21.0192,3472.0,3471.9,4.4342]
[1754215956691,21.0192,3472.0,3471.9,0.5216]
[1754215957491,21.0715,3472.0,3471.9,0.5216]
[1754215958492,21.0192,3472.0,3471.9,0.5216]
[1754215958700,21.0192,3472.0,3471.9,1.2264]
[1754215959794,21.0192,3472.0,3471.9,1.524]
[1754215960498,20.1429,3472.0,3471.9,1.524]
[1754215960697,20.9374,3472.0,3471.9,1.524]
[1754215961098,1.2964,3472.0,3471.9,1.524]
[1754215961299,20.9374,3472.0,3471.9,1.524]
[1754215961694,19.9375,3472.0,3471.9,4.7318]
[1754215963002,0.7945,3472.2,3472.1,0.5048]
[1754215963003,1.091,3472.2,3472.1,0.5048]
[1754215963197,21.64334359,3472.2,3472.1,1.524]
[1754215964002,21.84874359,3472.2,3472.1,1.524]
[1754215964303,1.69814359,3472.2,3472.1,1.524]
[1754215964602,2.092,3472.3,3472.2,2.10006]
[1754215964797,23.13570365,3472.3,3472.2,2.10006]